{"text_format":"1","workbook":"xlsx","n_sheets":1,"sheets":["Prairie City"],"not_rendered":{"charts":0,"images":0,"macros":1,"external_links":0,"defined_names":1,"comments":0,"pivot_tables":0},"unopened":[],"bounds":{"document_bytes":16777216,"sheet_cells":100000,"rows_first":2000,"rows_last":500,"rows_between":2000,"halvings":0,"cell_chars":16384,"cell_head_chars":4096},"cells_cut":0,"cells_raw":0,"read":"whole","date_system":"1900"}

{"sheet":"Prairie City","index":0,"n_rows":1043,"n_cols":12,"rows_kept":1043,"cut":false,"hidden":false,"merged":[[20,1,20,2],[21,1,21,2],[18,0,18,2],[22,1,22,2],[23,1,23,2],[24,1,24,2],[8,11,8,14],[25,1,25,2],[9,4,9,5],[19,3,33,5],[26,1,26,2],[27,1,27,2],[28,1,28,2],[29,1,29,2],[30,1,30,2],[31,1,31,2],[32,1,32,2],[33,1,33,2],[19,1,19,2]]}
["Building Permit"]
["Side 2 of 2",null,"                         ","Address:"]
["Prairie City"]
["ZONING:"]
["New Construction:","X","Addition:",null,"Change of Occ.:"]
["Remodel:",null,"Repair:",null,"Demolition:"]
["Type of use:","Residential","Const Type:","VB","Occ. Group:","R"]
["Description of Work","New Home"]
[null,null,null,null,null,null,null,"**All #'s for single family dwellings",null,null,null,"Sheds, fences, decks, utilities"]
["LOCATION","Sq. ft.","X","Valuation","ZONING",null,null,"R-1","R - 1A","R-2",null,"Done By City"]
["1st Floor",null,116.15,{"$f":"B11*C11","v":0},"Front Setback:",null,null,25,25,25]
["2nd Floor",null,116.15,{"$f":"B12*C12","v":0},"Rear Setback:",null,null,30,30,30]
["3rd Floor",null,116.15,0,"Side 1 Setback:",null,null,8,8,8]
["Basement Finished",null,42,0,"Side 2 Setback:",null,null,8,8,8]
["Basement Unfinished",null,21,0,"# of Req Parking:"]
["Garage/Carport",null,45.92,0,"# Handicapped Spots:"]
["Deck/Porch",null,30,0]
[null,null,null,0]
["TOTAL",null,null,{"$f":"SUM(D11:D18)","v":0}]
["BUILDING PERMIT FEES",null,null,"Comments:",null,null,null,null,"Notes:"]
["Basic Permit Fee:",{"$f":"L40","v":0},null,null,null,null,null,null,"BY CITY Water Hook Up = $100, meter $250, irrigation $250"]
["Plan Review Fee:",null,null,null,null,null,null,null,"BY CITY Sewer Hook Up = $225"]
["Sidewalk Fee:",null,null,null,null,null,null,null,"BY CITY New Home Approach/Sidewalk Fee = $50"]
["Approach Fee:",null,null,null,null,null,null,null,"Fence, shed, deck and garages inspected by City Staff "]
["UTILITY FEES"]
["Sewer Con. Fee:"]
["Sewer Dist, Fee:",null,null,null,null,null,null,null,"**If needed plan review fee is"]
["Storm Utility Fee:",null,null,null,null,null,null,null,{"$f":"B21*0.65","v":0}]
["Water Connect Fee:"]
["Water Conn. Outside City:"]
["Water Meter Fee:"]
["Water Meter Irrigation Fee:"]
[]
["TOTAL FEE:",{"$f":"SUM(B21:C33)","v":0}]
[]
[]
[]
[]
[]
[null,null,null,null,null,null,null,null,null,null,{"$f":"ROUNDUP(D19,-3)","v":0},{"$f":"SUMIF(K44:K1043,K40,L44:L1043)","v":0}]
[]
[null,null,null,null,null,null,null,null,null,null,"VAL","PERMIT FEE"]
[null,null,null,null,null,null,null,null,null,null,1000,1]
[null,null,null,null,null,null,null,null,null,null,2000,1]
[null,null,null,null,null,null,null,null,null,null,2001,75.5]
[null,null,null,null,null,null,null,null,null,null,3000,75.5]
[null,null,null,null,null,null,null,null,null,null,4000,{"$f":"L46+12.5","v":88}]
[null,null,null,null,null,null,null,null,null,null,5000,{"$f":"L47+12.5","v":100.5}]
[null,null,null,null,null,null,null,null,null,null,6000,113]
[null,null,null,null,null,null,null,null,null,null,7000,125.5]
[null,null,null,null,null,null,null,null,null,null,{"$f":"K50+1000","v":8000},138]
[null,null,null,null,null,null,null,null,null,null,{"$f":"K51+1000","v":9000},150]
[null,null,null,null,null,null,null,null,null,null,10000,163]
[null,null,null,null,null,null,null,null,null,null,11000,175.5]
[null,null,null,null,null,null,null,null,null,null,12000,188]
[null,null,null,null,null,null,null,null,null,null,13000,200.5]
[null,null,null,null,null,null,null,null,null,null,14000,213]
[null,null,null,null,null,null,null,null,null,null,15000,225.5]
[null,null,null,null,null,null,null,null,null,null,16000,238]
[null,null,null,null,null,null,null,null,null,null,17000,250.5]
[null,null,null,null,null,null,null,null,null,null,18000,263]
[null,null,null,null,null,null,null,null,null,null,19000,275.5]
[null,null,null,null,null,null,null,null,null,null,20000,288]
[null,null,null,null,null,null,null,null,null,null,21000,300.5]
[null,null,null,null,null,null,null,null,null,null,22000,313]
[null,null,null,null,null,null,null,null,null,null,23000,325.5]
[null,null,null,null,null,null,null,null,null,null,24000,338]
[null,null,null,null,null,null,null,null,null,null,25000,350.5]
[null,null,null,null,null,null,null,null,null,null,{"$f":"K68+1000","v":26000},361]
[null,null,null,null,null,null,null,null,null,null,27000,{"$f":"L69+9","v":370}]
[null,null,null,null,null,null,null,null,null,null,28000,{"$f":"L70+9","v":379}]
[null,null,null,null,null,null,null,null,null,null,29000,388]
[null,null,null,null,null,null,null,null,null,null,30000,397]
[null,null,null,null,null,null,null,null,null,null,31000,406]
[null,null,null,null,null,null,null,null,null,null,32000,415]
[null,null,null,null,null,null,null,null,null,null,33000,424]
[null,null,null,null,null,null,null,null,null,null,34000,433]
[null,null,null,null,null,null,null,null,null,null,35000,442]
[null,null,null,null,null,null,null,null,null,null,36000,451]
[null,null,null,null,null,null,null,null,null,null,37000,460]
[null,null,null,null,null,null,null,null,null,null,38000,469]
[null,null,null,null,null,null,null,null,null,null,39000,478]
[null,null,null,null,null,null,null,null,null,null,40000,487]
[null,null,null,null,null,null,null,null,null,null,41000,496]
[null,null,null,null,null,null,null,null,null,null,42000,505]
[null,null,null,null,null,null,null,null,null,null,43000,514]
[null,null,null,null,null,null,null,null,null,null,44000,523]
[null,null,null,null,null,null,null,null,null,null,45000,532]
[null,null,null,null,null,null,null,null,null,null,46000,541]
[null,null,null,null,null,null,null,null,null,null,47000,550]
[null,null,null,null,null,null,null,null,null,null,48000,559]
[null,null,null,null,null,null,null,null,null,null,49000,568]
[null,null,null,null,null,null,null,null,null,null,50000,577]
[null,null,null,null,null,null,null,null,null,null,51000,{"$f":"L93+9.25","v":586.25}]
[null,null,null,null,null,null,null,null,null,null,52000,{"$f":"L94+6.25","v":592.5}]
[null,null,null,null,null,null,null,null,null,null,53000,598.75]
[null,null,null,null,null,null,null,null,null,null,54000,605]
[null,null,null,null,null,null,null,null,null,null,55000,611.25]
[null,null,null,null,null,null,null,null,null,null,56000,617.5]
[null,null,null,null,null,null,null,null,null,null,57000,623.75]
[null,null,null,null,null,null,null,null,null,null,58000,630]
[null,null,null,null,null,null,null,null,null,null,59000,636.25]
[null,null,null,null,null,null,null,null,null,null,60000,642.5]
[null,null,null,null,null,null,null,null,null,null,61000,648.75]
[null,null,null,null,null,null,null,null,null,null,62000,655]
[null,null,null,null,null,null,null,null,null,null,63000,661.25]
[null,null,null,null,null,null,null,null,null,null,64000,667.5]
[null,null,null,null,null,null,null,null,null,null,65000,673.75]
[null,null,null,null,null,null,null,null,null,null,66000,680]
[null,null,null,null,null,null,null,null,null,null,67000,686.25]
[null,null,null,null,null,null,null,null,null,null,68000,692.5]
[null,null,null,null,null,null,null,null,null,null,69000,698.75]
[null,null,null,null,null,null,null,null,null,null,70000,705]
[null,null,null,null,null,null,null,null,null,null,71000,711.25]
[null,null,null,null,null,null,null,null,null,null,72000,717.5]
[null,null,null,null,null,null,null,null,null,null,{"$f":"K115+1000","v":73000},723.75]
[null,null,null,null,null,null,null,null,null,null,74000,730]
[null,null,null,null,null,null,null,null,null,null,75000,736.25]
[null,null,null,null,null,null,null,null,null,null,76000,742.5]
[null,null,null,null,null,null,null,null,null,null,77000,748.75]
[null,null,null,null,null,null,null,null,null,null,78000,755]
[null,null,null,null,null,null,null,null,null,null,79000,761.25]
[null,null,null,null,null,null,null,null,null,null,80000,767.5]
[null,null,null,null,null,null,null,null,null,null,81000,773.75]
[null,null,null,null,null,null,null,null,null,null,82000,780]
[null,null,null,null,null,null,null,null,null,null,83000,786.25]
[null,null,null,null,null,null,null,null,null,null,84000,792.5]
[null,null,null,null,null,null,null,null,null,null,85000,798.75]
[null,null,null,null,null,null,null,null,null,null,86000,805]
[null,null,null,null,null,null,null,null,null,null,87000,811.25]
[null,null,null,null,null,null,null,null,null,null,88000,817.5]
[null,null,null,null,null,null,null,null,null,null,89000,823.75]
[null,null,null,null,null,null,null,null,null,null,90000,830]
[null,null,null,null,null,null,null,null,null,null,91000,836.25]
[null,null,null,null,null,null,null,null,null,null,92000,842.5]
[null,null,null,null,null,null,null,null,null,null,93000,848.75]
[null,null,null,null,null,null,null,null,null,null,94000,855]
[null,null,null,null,null,null,null,null,null,null,95000,861.25]
[null,null,null,null,null,null,null,null,null,null,96000,867.5]
[null,null,null,null,null,null,null,null,null,null,97000,873.75]
[null,null,null,null,null,null,null,null,null,null,98000,880]
[null,null,null,null,null,null,null,null,null,null,99000,886.25]
[null,null,null,null,null,null,null,null,null,null,100000,892.5]
[null,null,null,null,null,null,null,null,null,null,101000,900]
[null,null,null,null,null,null,null,null,null,null,102000,{"$f":"L144+5","v":905}]
[null,null,null,null,null,null,null,null,null,null,103000,{"$f":"L145+5","v":910}]
[null,null,null,null,null,null,null,null,null,null,104000,915]
[null,null,null,null,null,null,null,null,null,null,105000,920]
[null,null,null,null,null,null,null,null,null,null,106000,925]
[null,null,null,null,null,null,null,null,null,null,107000,930]
[null,null,null,null,null,null,null,null,null,null,108000,935]
[null,null,null,null,null,null,null,null,null,null,109000,940]
[null,null,null,null,null,null,null,null,null,null,110000,945]
[null,null,null,null,null,null,null,null,null,null,111000,950]
[null,null,null,null,null,null,null,null,null,null,112000,955]
[null,null,null,null,null,null,null,null,null,null,113000,960]
[null,null,null,null,null,null,null,null,null,null,114000,965]
[null,null,null,null,null,null,null,null,null,null,115000,970]
[null,null,null,null,null,null,null,null,null,null,116000,975]
[null,null,null,null,null,null,null,null,null,null,117000,980]
[null,null,null,null,null,null,null,null,null,null,118000,985]
[null,null,null,null,null,null,null,null,null,null,119000,990]
[null,null,null,null,null,null,null,null,null,null,120000,995]
[null,null,null,null,null,null,null,null,null,null,121000,1000]
[null,null,null,null,null,null,null,null,null,null,122000,1005]
[null,null,null,null,null,null,null,null,null,null,123000,1010]
[null,null,null,null,null,null,null,null,null,null,124000,1015]
[null,null,null,null,null,null,null,null,null,null,125000,1020]
[null,null,null,null,null,null,null,null,null,null,126000,1025]
[null,null,null,null,null,null,null,null,null,null,127000,1030]
[null,null,null,null,null,null,null,null,null,null,128000,1035]
[null,null,null,null,null,null,null,null,null,null,129000,1040]
[null,null,null,null,null,null,null,null,null,null,130000,1045]
[null,null,null,null,null,null,null,null,null,null,131000,1050]
[null,null,null,null,null,null,null,null,null,null,132000,1055]
[null,null,null,null,null,null,null,null,null,null,133000,1060]
[null,null,null,null,null,null,null,null,null,null,134000,1065]
[null,null,null,null,null,null,null,null,null,null,135000,1070]
[null,null,null,null,null,null,null,null,null,null,136000,1075]
[null,null,null,null,null,null,null,null,null,null,{"$f":"K179+1000","v":137000},1080]
[null,null,null,null,null,null,null,null,null,null,138000,1085]
[null,null,null,null,null,null,null,null,null,null,139000,1090]
[null,null,null,null,null,null,null,null,null,null,140000,1095]
[null,null,null,null,null,null,null,null,null,null,141000,1100]
[null,null,null,null,null,null,null,null,null,null,142000,1105]
[null,null,null,null,null,null,null,null,null,null,143000,1110]
[null,null,null,null,null,null,null,null,null,null,144000,1115]
[null,null,null,null,null,null,null,null,null,null,145000,1120]
[null,null,null,null,null,null,null,null,null,null,146000,1125]
[null,null,null,null,null,null,null,null,null,null,147000,1130]
[null,null,null,null,null,null,null,null,null,null,148000,1135]
[null,null,null,null,null,null,null,null,null,null,149000,1140]
[null,null,null,null,null,null,null,null,null,null,150000,1145]
[null,null,null,null,null,null,null,null,null,null,151000,1150]
[null,null,null,null,null,null,null,null,null,null,152000,1155]
[null,null,null,null,null,null,null,null,null,null,153000,1160]
[null,null,null,null,null,null,null,null,null,null,154000,1165]
[null,null,null,null,null,null,null,null,null,null,155000,1170]
[null,null,null,null,null,null,null,null,null,null,156000,1175]
[null,null,null,null,null,null,null,null,null,null,157000,1180]
[null,null,null,null,null,null,null,null,null,null,158000,1185]
[null,null,null,null,null,null,null,null,null,null,159000,1190]
[null,null,null,null,null,null,null,null,null,null,160000,1195]
[null,null,null,null,null,null,null,null,null,null,161000,1200]
[null,null,null,null,null,null,null,null,null,null,162000,1205]
[null,null,null,null,null,null,null,null,null,null,163000,1210]
[null,null,null,null,null,null,null,null,null,null,164000,1215]
[null,null,null,null,null,null,null,null,null,null,165000,1220]
[null,null,null,null,null,null,null,null,null,null,166000,1225]
[null,null,null,null,null,null,null,null,null,null,167000,{"$f":"L209+5","v":1230}]
[null,null,null,null,null,null,null,null,null,null,168000,1235]
[null,null,null,null,null,null,null,null,null,null,169000,1240]
[null,null,null,null,null,null,null,null,null,null,170000,1245]
[null,null,null,null,null,null,null,null,null,null,171000,1250]
[null,null,null,null,null,null,null,null,null,null,172000,1255]
[null,null,null,null,null,null,null,null,null,null,173000,1260]
[null,null,null,null,null,null,null,null,null,null,174000,1265]
[null,null,null,null,null,null,null,null,null,null,175000,1270]
[null,null,null,null,null,null,null,null,null,null,176000,1275]
[null,null,null,null,null,null,null,null,null,null,177000,1280]
[null,null,null,null,null,null,null,null,null,null,178000,1285]
[null,null,null,null,null,null,null,null,null,null,179000,1290]
[null,null,null,null,null,null,null,null,null,null,180000,1295]
[null,null,null,null,null,null,null,null,null,null,181000,1300]
[null,null,null,null,null,null,null,null,null,null,182000,1305]
[null,null,null,null,null,null,null,null,null,null,183000,1310]
[null,null,null,null,null,null,null,null,null,null,184000,1315]
[null,null,null,null,null,null,null,null,null,null,185000,1320]
[null,null,null,null,null,null,null,null,null,null,186000,1325]
[null,null,null,null,null,null,null,null,null,null,187000,1330]
[null,null,null,null,null,null,null,null,null,null,188000,1335]
[null,null,null,null,null,null,null,null,null,null,189000,1340]
[null,null,null,null,null,null,null,null,null,null,190000,1345]
[null,null,null,null,null,null,null,null,null,null,191000,1350]
[null,null,null,null,null,null,null,null,null,null,192000,1355]
[null,null,null,null,null,null,null,null,null,null,193000,1360]
[null,null,null,null,null,null,null,null,null,null,194000,1365]
[null,null,null,null,null,null,null,null,null,null,195000,1370]
[null,null,null,null,null,null,null,null,null,null,196000,1375]
[null,null,null,null,null,null,null,null,null,null,197000,1380]
[null,null,null,null,null,null,null,null,null,null,198000,1385]
[null,null,null,null,null,null,null,null,null,null,199000,1390]
[null,null,null,null,null,null,null,null,null,null,200000,1395]
[null,null,null,null,null,null,null,null,null,null,{"$f":"K243+1000","v":201000},1400]
[null,null,null,null,null,null,null,null,null,null,202000,1405]
[null,null,null,null,null,null,null,null,null,null,203000,1410]
[null,null,null,null,null,null,null,null,null,null,204000,1415]
[null,null,null,null,null,null,null,null,null,null,205000,1420]
[null,null,null,null,null,null,null,null,null,null,206000,1425]
[null,null,null,null,null,null,null,null,null,null,207000,1430]
[null,null,null,null,null,null,null,null,null,null,208000,1435]
[null,null,null,null,null,null,null,null,null,null,209000,1440]
[null,null,null,null,null,null,null,null,null,null,210000,1445]
[null,null,null,null,null,null,null,null,null,null,211000,1450]
[null,null,null,null,null,null,null,null,null,null,212000,1455]
[null,null,null,null,null,null,null,null,null,null,213000,1460]
[null,null,null,null,null,null,null,null,null,null,214000,1465]
[null,null,null,null,null,null,null,null,null,null,215000,1470]
[null,null,null,null,null,null,null,null,null,null,216000,1475]
[null,null,null,null,null,null,null,null,null,null,217000,1480]
[null,null,null,null,null,null,null,null,null,null,218000,1485]
[null,null,null,null,null,null,null,null,null,null,219000,1490]
[null,null,null,null,null,null,null,null,null,null,220000,1495]
[null,null,null,null,null,null,null,null,null,null,221000,1500]
[null,null,null,null,null,null,null,null,null,null,222000,1505]
[null,null,null,null,null,null,null,null,null,null,223000,1510]
[null,null,null,null,null,null,null,null,null,null,224000,1515]
[null,null,null,null,null,null,null,null,null,null,225000,1520]
[null,null,null,null,null,null,null,null,null,null,226000,1525]
[null,null,null,null,null,null,null,null,null,null,227000,1530]
[null,null,null,null,null,null,null,null,null,null,228000,1535]
[null,null,null,null,null,null,null,null,null,null,229000,1540]
[null,null,null,null,null,null,null,null,null,null,230000,1545]
[null,null,null,null,null,null,null,null,null,null,231000,{"$f":"L273+5","v":1550}]
[null,null,null,null,null,null,null,null,null,null,232000,1555]
[null,null,null,null,null,null,null,null,null,null,233000,1560]
[null,null,null,null,null,null,null,null,null,null,234000,1565]
[null,null,null,null,null,null,null,null,null,null,235000,1570]
[null,null,null,null,null,null,null,null,null,null,236000,1575]
[null,null,null,null,null,null,null,null,null,null,237000,1580]
[null,null,null,null,null,null,null,null,null,null,238000,1585]
[null,null,null,null,null,null,null,null,null,null,239000,1590]
[null,null,null,null,null,null,null,null,null,null,240000,1595]
[null,null,null,null,null,null,null,null,null,null,241000,1600]
[null,null,null,null,null,null,null,null,null,null,242000,1605]
[null,null,null,null,null,null,null,null,null,null,243000,1610]
[null,null,null,null,null,null,null,null,null,null,244000,1615]
[null,null,null,null,null,null,null,null,null,null,245000,1620]
[null,null,null,null,null,null,null,null,null,null,246000,1625]
[null,null,null,null,null,null,null,null,null,null,247000,1630]
[null,null,null,null,null,null,null,null,null,null,248000,1635]
[null,null,null,null,null,null,null,null,null,null,249000,1640]
[null,null,null,null,null,null,null,null,null,null,250000,1645]
[null,null,null,null,null,null,null,null,null,null,251000,1650]
[null,null,null,null,null,null,null,null,null,null,252000,1655]
[null,null,null,null,null,null,null,null,null,null,253000,1660]
[null,null,null,null,null,null,null,null,null,null,254000,1665]
[null,null,null,null,null,null,null,null,null,null,255000,1670]
[null,null,null,null,null,null,null,null,null,null,256000,1675]
[null,null,null,null,null,null,null,null,null,null,257000,1680]
[null,null,null,null,null,null,null,null,null,null,258000,1685]
[null,null,null,null,null,null,null,null,null,null,259000,1690]
[null,null,null,null,null,null,null,null,null,null,260000,1695]
[null,null,null,null,null,null,null,null,null,null,261000,1700]
[null,null,null,null,null,null,null,null,null,null,262000,1705]
[null,null,null,null,null,null,null,null,null,null,263000,1710]
[null,null,null,null,null,null,null,null,null,null,264000,1715]
[null,null,null,null,null,null,null,null,null,null,{"$f":"K307+1000","v":265000},1720]
[null,null,null,null,null,null,null,null,null,null,266000,1725]
[null,null,null,null,null,null,null,null,null,null,267000,1730]
[null,null,null,null,null,null,null,null,null,null,268000,1735]
[null,null,null,null,null,null,null,null,null,null,269000,1740]
[null,null,null,null,null,null,null,null,null,null,270000,1745]
[null,null,null,null,null,null,null,null,null,null,271000,1750]
[null,null,null,null,null,null,null,null,null,null,272000,1755]
[null,null,null,null,null,null,null,null,null,null,273000,1760]
[null,null,null,null,null,null,null,null,null,null,274000,1765]
[null,null,null,null,null,null,null,null,null,null,275000,1770]
[null,null,null,null,null,null,null,null,null,null,276000,1775]
[null,null,null,null,null,null,null,null,null,null,277000,1780]
[null,null,null,null,null,null,null,null,null,null,278000,1785]
[null,null,null,null,null,null,null,null,null,null,279000,1790]
[null,null,null,null,null,null,null,null,null,null,280000,1795]
[null,null,null,null,null,null,null,null,null,null,281000,1800]
[null,null,null,null,null,null,null,null,null,null,282000,1805]
[null,null,null,null,null,null,null,null,null,null,283000,1810]
[null,null,null,null,null,null,null,null,null,null,284000,1815]
[null,null,null,null,null,null,null,null,null,null,285000,1820]
[null,null,null,null,null,null,null,null,null,null,286000,1825]
[null,null,null,null,null,null,null,null,null,null,287000,1830]
[null,null,null,null,null,null,null,null,null,null,288000,1835]
[null,null,null,null,null,null,null,null,null,null,289000,1840]
[null,null,null,null,null,null,null,null,null,null,290000,1845]
[null,null,null,null,null,null,null,null,null,null,291000,1850]
[null,null,null,null,null,null,null,null,null,null,292000,1855]
[null,null,null,null,null,null,null,null,null,null,293000,1860]
[null,null,null,null,null,null,null,null,null,null,294000,1865]
[null,null,null,null,null,null,null,null,null,null,295000,{"$f":"L337+5","v":1870}]
[null,null,null,null,null,null,null,null,null,null,296000,1875]
[null,null,null,null,null,null,null,null,null,null,297000,1880]
[null,null,null,null,null,null,null,null,null,null,298000,1885]
[null,null,null,null,null,null,null,null,null,null,299000,1890]
[null,null,null,null,null,null,null,null,null,null,300000,1895]
[null,null,null,null,null,null,null,null,null,null,301000,1900]
[null,null,null,null,null,null,null,null,null,null,302000,1905]
[null,null,null,null,null,null,null,null,null,null,303000,1910]
[null,null,null,null,null,null,null,null,null,null,304000,1915]
[null,null,null,null,null,null,null,null,null,null,305000,1920]
[null,null,null,null,null,null,null,null,null,null,306000,1925]
[null,null,null,null,null,null,null,null,null,null,307000,1930]
[null,null,null,null,null,null,null,null,null,null,308000,1935]
[null,null,null,null,null,null,null,null,null,null,309000,1940]
[null,null,null,null,null,null,null,null,null,null,310000,1945]
[null,null,null,null,null,null,null,null,null,null,311000,1950]
[null,null,null,null,null,null,null,null,null,null,312000,1955]
[null,null,null,null,null,null,null,null,null,null,313000,1960]
[null,null,null,null,null,null,null,null,null,null,314000,1965]
[null,null,null,null,null,null,null,null,null,null,315000,1970]
[null,null,null,null,null,null,null,null,null,null,316000,1975]
[null,null,null,null,null,null,null,null,null,null,317000,1980]
[null,null,null,null,null,null,null,null,null,null,318000,1985]
[null,null,null,null,null,null,null,null,null,null,319000,1990]
[null,null,null,null,null,null,null,null,null,null,320000,1995]
[null,null,null,null,null,null,null,null,null,null,321000,2000]
[null,null,null,null,null,null,null,null,null,null,322000,2005]
[null,null,null,null,null,null,null,null,null,null,323000,2010]
[null,null,null,null,null,null,null,null,null,null,324000,2015]
[null,null,null,null,null,null,null,null,null,null,325000,2020]
[null,null,null,null,null,null,null,null,null,null,326000,2025]
[null,null,null,null,null,null,null,null,null,null,327000,2030]
[null,null,null,null,null,null,null,null,null,null,328000,2035]
[null,null,null,null,null,null,null,null,null,null,{"$f":"K371+1000","v":329000},2040]
[null,null,null,null,null,null,null,null,null,null,330000,2045]
[null,null,null,null,null,null,null,null,null,null,331000,2050]
[null,null,null,null,null,null,null,null,null,null,332000,2055]
[null,null,null,null,null,null,null,null,null,null,333000,2060]
[null,null,null,null,null,null,null,null,null,null,334000,2065]
[null,null,null,null,null,null,null,null,null,null,335000,2070]
[null,null,null,null,null,null,null,null,null,null,336000,2075]
[null,null,null,null,null,null,null,null,null,null,337000,2080]
[null,null,null,null,null,null,null,null,null,null,338000,2085]
[null,null,null,null,null,null,null,null,null,null,339000,2090]
[null,null,null,null,null,null,null,null,null,null,340000,2095]
[null,null,null,null,null,null,null,null,null,null,341000,2100]
[null,null,null,null,null,null,null,null,null,null,342000,2105]
[null,null,null,null,null,null,null,null,null,null,343000,2110]
[null,null,null,null,null,null,null,null,null,null,344000,2115]
[null,null,null,null,null,null,null,null,null,null,345000,2120]
[null,null,null,null,null,null,null,null,null,null,346000,2125]
[null,null,null,null,null,null,null,null,null,null,347000,2130]
[null,null,null,null,null,null,null,null,null,null,348000,2135]
[null,null,null,null,null,null,null,null,null,null,349000,2140]
[null,null,null,null,null,null,null,null,null,null,350000,2145]
[null,null,null,null,null,null,null,null,null,null,351000,2150]
[null,null,null,null,null,null,null,null,null,null,352000,2155]
[null,null,null,null,null,null,null,null,null,null,353000,2160]
[null,null,null,null,null,null,null,null,null,null,354000,2165]
[null,null,null,null,null,null,null,null,null,null,355000,2170]
[null,null,null,null,null,null,null,null,null,null,356000,2175]
[null,null,null,null,null,null,null,null,null,null,357000,2180]
[null,null,null,null,null,null,null,null,null,null,358000,2185]
[null,null,null,null,null,null,null,null,null,null,359000,{"$f":"L401+5","v":2190}]
[null,null,null,null,null,null,null,null,null,null,360000,2195]
[null,null,null,null,null,null,null,null,null,null,361000,2200]
[null,null,null,null,null,null,null,null,null,null,362000,2205]
[null,null,null,null,null,null,null,null,null,null,363000,2210]
[null,null,null,null,null,null,null,null,null,null,364000,2215]
[null,null,null,null,null,null,null,null,null,null,365000,2220]
[null,null,null,null,null,null,null,null,null,null,366000,2225]
[null,null,null,null,null,null,null,null,null,null,367000,2230]
[null,null,null,null,null,null,null,null,null,null,368000,2235]
[null,null,null,null,null,null,null,null,null,null,369000,2240]
[null,null,null,null,null,null,null,null,null,null,370000,2245]
[null,null,null,null,null,null,null,null,null,null,371000,2250]
[null,null,null,null,null,null,null,null,null,null,372000,2255]
[null,null,null,null,null,null,null,null,null,null,373000,2260]
[null,null,null,null,null,null,null,null,null,null,374000,2265]
[null,null,null,null,null,null,null,null,null,null,375000,2270]
[null,null,null,null,null,null,null,null,null,null,376000,2275]
[null,null,null,null,null,null,null,null,null,null,377000,2280]
[null,null,null,null,null,null,null,null,null,null,378000,2285]
[null,null,null,null,null,null,null,null,null,null,379000,2290]
[null,null,null,null,null,null,null,null,null,null,380000,2295]
[null,null,null,null,null,null,null,null,null,null,381000,2300]
[null,null,null,null,null,null,null,null,null,null,382000,2305]
[null,null,null,null,null,null,null,null,null,null,383000,2310]
[null,null,null,null,null,null,null,null,null,null,384000,2315]
[null,null,null,null,null,null,null,null,null,null,385000,2320]
[null,null,null,null,null,null,null,null,null,null,386000,2325]
[null,null,null,null,null,null,null,null,null,null,387000,2330]
[null,null,null,null,null,null,null,null,null,null,388000,2335]
[null,null,null,null,null,null,null,null,null,null,389000,2340]
[null,null,null,null,null,null,null,null,null,null,390000,2345]
[null,null,null,null,null,null,null,null,null,null,391000,2350]
[null,null,null,null,null,null,null,null,null,null,392000,2355]
[null,null,null,null,null,null,null,null,null,null,{"$f":"K435+1000","v":393000},2360]
[null,null,null,null,null,null,null,null,null,null,394000,2365]
[null,null,null,null,null,null,null,null,null,null,395000,2370]
[null,null,null,null,null,null,null,null,null,null,396000,2375]
[null,null,null,null,null,null,null,null,null,null,397000,2380]
[null,null,null,null,null,null,null,null,null,null,398000,2385]
[null,null,null,null,null,null,null,null,null,null,399000,2390]
[null,null,null,null,null,null,null,null,null,null,400000,2395]
[null,null,null,null,null,null,null,null,null,null,401000,2400]
[null,null,null,null,null,null,null,null,null,null,402000,2405]
[null,null,null,null,null,null,null,null,null,null,403000,2410]
[null,null,null,null,null,null,null,null,null,null,404000,2415]
[null,null,null,null,null,null,null,null,null,null,405000,2420]
[null,null,null,null,null,null,null,null,null,null,406000,2425]
[null,null,null,null,null,null,null,null,null,null,407000,2430]
[null,null,null,null,null,null,null,null,null,null,408000,2435]
[null,null,null,null,null,null,null,null,null,null,409000,2440]
[null,null,null,null,null,null,null,null,null,null,410000,2445]
[null,null,null,null,null,null,null,null,null,null,411000,2450]
[null,null,null,null,null,null,null,null,null,null,412000,2455]
[null,null,null,null,null,null,null,null,null,null,413000,2460]
[null,null,null,null,null,null,null,null,null,null,414000,2465]
[null,null,null,null,null,null,null,null,null,null,415000,2470]
[null,null,null,null,null,null,null,null,null,null,416000,2475]
[null,null,null,null,null,null,null,null,null,null,417000,2480]
[null,null,null,null,null,null,null,null,null,null,418000,2485]
[null,null,null,null,null,null,null,null,null,null,419000,2490]
[null,null,null,null,null,null,null,null,null,null,420000,2495]
[null,null,null,null,null,null,null,null,null,null,421000,2500]
[null,null,null,null,null,null,null,null,null,null,422000,2505]
[null,null,null,null,null,null,null,null,null,null,423000,{"$f":"L465+5","v":2510}]
[null,null,null,null,null,null,null,null,null,null,424000,2515]
[null,null,null,null,null,null,null,null,null,null,425000,2520]
[null,null,null,null,null,null,null,null,null,null,426000,2525]
[null,null,null,null,null,null,null,null,null,null,427000,2530]
[null,null,null,null,null,null,null,null,null,null,428000,2535]
[null,null,null,null,null,null,null,null,null,null,429000,2540]
[null,null,null,null,null,null,null,null,null,null,430000,2545]
[null,null,null,null,null,null,null,null,null,null,431000,2550]
[null,null,null,null,null,null,null,null,null,null,432000,2555]
[null,null,null,null,null,null,null,null,null,null,433000,2560]
[null,null,null,null,null,null,null,null,null,null,434000,2565]
[null,null,null,null,null,null,null,null,null,null,435000,2570]
[null,null,null,null,null,null,null,null,null,null,436000,2575]
[null,null,null,null,null,null,null,null,null,null,437000,2580]
[null,null,null,null,null,null,null,null,null,null,438000,2585]
[null,null,null,null,null,null,null,null,null,null,439000,2590]
[null,null,null,null,null,null,null,null,null,null,440000,2595]
[null,null,null,null,null,null,null,null,null,null,441000,2600]
[null,null,null,null,null,null,null,null,null,null,442000,2605]
[null,null,null,null,null,null,null,null,null,null,443000,2610]
[null,null,null,null,null,null,null,null,null,null,444000,2615]
[null,null,null,null,null,null,null,null,null,null,445000,2620]
[null,null,null,null,null,null,null,null,null,null,446000,2625]
[null,null,null,null,null,null,null,null,null,null,447000,2630]
[null,null,null,null,null,null,null,null,null,null,448000,2635]
[null,null,null,null,null,null,null,null,null,null,449000,2640]
[null,null,null,null,null,null,null,null,null,null,450000,2645]
[null,null,null,null,null,null,null,null,null,null,451000,2650]
[null,null,null,null,null,null,null,null,null,null,452000,2655]
[null,null,null,null,null,null,null,null,null,null,453000,2660]
[null,null,null,null,null,null,null,null,null,null,454000,2665]
[null,null,null,null,null,null,null,null,null,null,455000,2670]
[null,null,null,null,null,null,null,null,null,null,456000,2675]
[null,null,null,null,null,null,null,null,null,null,{"$f":"K499+1000","v":457000},2680]
[null,null,null,null,null,null,null,null,null,null,458000,2685]
[null,null,null,null,null,null,null,null,null,null,459000,2690]
[null,null,null,null,null,null,null,null,null,null,460000,2695]
[null,null,null,null,null,null,null,null,null,null,461000,2700]
[null,null,null,null,null,null,null,null,null,null,462000,2705]
[null,null,null,null,null,null,null,null,null,null,463000,2710]
[null,null,null,null,null,null,null,null,null,null,464000,2715]
[null,null,null,null,null,null,null,null,null,null,465000,2720]
[null,null,null,null,null,null,null,null,null,null,466000,2725]
[null,null,null,null,null,null,null,null,null,null,467000,2730]
[null,null,null,null,null,null,null,null,null,null,468000,2735]
[null,null,null,null,null,null,null,null,null,null,469000,2740]
[null,null,null,null,null,null,null,null,null,null,470000,2745]
[null,null,null,null,null,null,null,null,null,null,471000,2750]
[null,null,null,null,null,null,null,null,null,null,472000,2755]
[null,null,null,null,null,null,null,null,null,null,473000,2760]
[null,null,null,null,null,null,null,null,null,null,474000,2765]
[null,null,null,null,null,null,null,null,null,null,475000,2770]
[null,null,null,null,null,null,null,null,null,null,476000,2775]
[null,null,null,null,null,null,null,null,null,null,477000,2780]
[null,null,null,null,null,null,null,null,null,null,478000,2785]
[null,null,null,null,null,null,null,null,null,null,479000,2790]
[null,null,null,null,null,null,null,null,null,null,480000,2795]
[null,null,null,null,null,null,null,null,null,null,481000,2800]
[null,null,null,null,null,null,null,null,null,null,482000,2805]
[null,null,null,null,null,null,null,null,null,null,483000,2810]
[null,null,null,null,null,null,null,null,null,null,484000,2815]
[null,null,null,null,null,null,null,null,null,null,485000,2820]
[null,null,null,null,null,null,null,null,null,null,486000,2825]
[null,null,null,null,null,null,null,null,null,null,487000,{"$f":"L529+5","v":2830}]
[null,null,null,null,null,null,null,null,null,null,488000,2835]
[null,null,null,null,null,null,null,null,null,null,489000,2840]
[null,null,null,null,null,null,null,null,null,null,490000,2845]
[null,null,null,null,null,null,null,null,null,null,491000,2850]
[null,null,null,null,null,null,null,null,null,null,492000,2855]
[null,null,null,null,null,null,null,null,null,null,493000,2860]
[null,null,null,null,null,null,null,null,null,null,494000,2865]
[null,null,null,null,null,null,null,null,null,null,495000,2870]
[null,null,null,null,null,null,null,null,null,null,496000,2875]
[null,null,null,null,null,null,null,null,null,null,497000,2880]
[null,null,null,null,null,null,null,null,null,null,498000,2885]
[null,null,null,null,null,null,null,null,null,null,499000,2890]
[null,null,null,null,null,null,null,null,null,null,500000,2895]
[null,null,null,null,null,null,null,null,null,null,501000,2859.25]
[null,null,null,null,null,null,null,null,null,null,502000,{"$f":"L544+4.25","v":2863.5}]
[null,null,null,null,null,null,null,null,null,null,503000,2867.75]
[null,null,null,null,null,null,null,null,null,null,504000,2872]
[null,null,null,null,null,null,null,null,null,null,505000,2876.25]
[null,null,null,null,null,null,null,null,null,null,506000,2880.5]
[null,null,null,null,null,null,null,null,null,null,507000,2884.75]
[null,null,null,null,null,null,null,null,null,null,508000,2889]
[null,null,null,null,null,null,null,null,null,null,509000,2893.25]
[null,null,null,null,null,null,null,null,null,null,510000,2897.5]
[null,null,null,null,null,null,null,null,null,null,511000,2901.75]
[null,null,null,null,null,null,null,null,null,null,512000,2906]
[null,null,null,null,null,null,null,null,null,null,513000,2910.25]
[null,null,null,null,null,null,null,null,null,null,514000,2914.5]
[null,null,null,null,null,null,null,null,null,null,515000,2918.75]
[null,null,null,null,null,null,null,null,null,null,516000,2923]
[null,null,null,null,null,null,null,null,null,null,517000,2927.25]
[null,null,null,null,null,null,null,null,null,null,518000,2931.5]
[null,null,null,null,null,null,null,null,null,null,519000,2935.75]
[null,null,null,null,null,null,null,null,null,null,520000,2940]
[null,null,null,null,null,null,null,null,null,null,{"$f":"K563+1000","v":521000},2944.25]
[null,null,null,null,null,null,null,null,null,null,522000,2948.5]
[null,null,null,null,null,null,null,null,null,null,523000,2952.75]
[null,null,null,null,null,null,null,null,null,null,524000,2957]
[null,null,null,null,null,null,null,null,null,null,525000,2961.25]
[null,null,null,null,null,null,null,null,null,null,526000,2965.5]
[null,null,null,null,null,null,null,null,null,null,527000,2969.75]
[null,null,null,null,null,null,null,null,null,null,528000,2974]
[null,null,null,null,null,null,null,null,null,null,529000,2978.25]
[null,null,null,null,null,null,null,null,null,null,530000,2982.5]
[null,null,null,null,null,null,null,null,null,null,531000,2986.75]
[null,null,null,null,null,null,null,null,null,null,532000,2991]
[null,null,null,null,null,null,null,null,null,null,533000,2995.25]
[null,null,null,null,null,null,null,null,null,null,534000,2999.5]
[null,null,null,null,null,null,null,null,null,null,535000,3003.75]
[null,null,null,null,null,null,null,null,null,null,536000,3008]
[null,null,null,null,null,null,null,null,null,null,537000,3012.25]
[null,null,null,null,null,null,null,null,null,null,538000,3016.5]
[null,null,null,null,null,null,null,null,null,null,539000,3020.75]
[null,null,null,null,null,null,null,null,null,null,540000,3025]
[null,null,null,null,null,null,null,null,null,null,541000,3029.25]
[null,null,null,null,null,null,null,null,null,null,542000,3033.5]
[null,null,null,null,null,null,null,null,null,null,543000,3037.75]
[null,null,null,null,null,null,null,null,null,null,544000,3042]
[null,null,null,null,null,null,null,null,null,null,545000,3046.25]
[null,null,null,null,null,null,null,null,null,null,546000,3050.5]
[null,null,null,null,null,null,null,null,null,null,547000,3054.75]
[null,null,null,null,null,null,null,null,null,null,548000,3059]
[null,null,null,null,null,null,null,null,null,null,549000,3063.25]
[null,null,null,null,null,null,null,null,null,null,550000,3067.5]
[null,null,null,null,null,null,null,null,null,null,551000,3071.75]
[null,null,null,null,null,null,null,null,null,null,552000,3076]
[null,null,null,null,null,null,null,null,null,null,553000,3080.25]
[null,null,null,null,null,null,null,null,null,null,554000,3084.5]
[null,null,null,null,null,null,null,null,null,null,555000,3088.75]
[null,null,null,null,null,null,null,null,null,null,556000,3093]
[null,null,null,null,null,null,null,null,null,null,557000,3097.25]
[null,null,null,null,null,null,null,null,null,null,558000,3101.5]
[null,null,null,null,null,null,null,null,null,null,559000,3105.75]
[null,null,null,null,null,null,null,null,null,null,560000,3110]
[null,null,null,null,null,null,null,null,null,null,561000,3114.25]
[null,null,null,null,null,null,null,null,null,null,562000,3118.5]
[null,null,null,null,null,null,null,null,null,null,563000,3122.75]
[null,null,null,null,null,null,null,null,null,null,564000,3127]
[null,null,null,null,null,null,null,null,null,null,565000,3131.25]
[null,null,null,null,null,null,null,null,null,null,566000,{"$f":"L608+4.25","v":3135.5}]
[null,null,null,null,null,null,null,null,null,null,567000,3139.75]
[null,null,null,null,null,null,null,null,null,null,568000,3144]
[null,null,null,null,null,null,null,null,null,null,569000,3148.25]
[null,null,null,null,null,null,null,null,null,null,570000,3152.5]
[null,null,null,null,null,null,null,null,null,null,571000,3156.75]
[null,null,null,null,null,null,null,null,null,null,572000,3161]
[null,null,null,null,null,null,null,null,null,null,573000,3165.25]
[null,null,null,null,null,null,null,null,null,null,574000,3169.5]
[null,null,null,null,null,null,null,null,null,null,575000,3173.75]
[null,null,null,null,null,null,null,null,null,null,576000,3178]
[null,null,null,null,null,null,null,null,null,null,577000,3182.25]
[null,null,null,null,null,null,null,null,null,null,578000,3186.5]
[null,null,null,null,null,null,null,null,null,null,579000,3190.75]
[null,null,null,null,null,null,null,null,null,null,580000,3195]
[null,null,null,null,null,null,null,null,null,null,581000,3199.25]
[null,null,null,null,null,null,null,null,null,null,582000,3203.5]
[null,null,null,null,null,null,null,null,null,null,583000,3207.75]
[null,null,null,null,null,null,null,null,null,null,584000,3212]
[null,null,null,null,null,null,null,null,null,null,{"$f":"K627+1000","v":585000},3216.25]
[null,null,null,null,null,null,null,null,null,null,586000,3220.5]
[null,null,null,null,null,null,null,null,null,null,587000,3224.75]
[null,null,null,null,null,null,null,null,null,null,588000,3229]
[null,null,null,null,null,null,null,null,null,null,589000,3233.25]
[null,null,null,null,null,null,null,null,null,null,590000,3237.5]
[null,null,null,null,null,null,null,null,null,null,591000,3241.75]
[null,null,null,null,null,null,null,null,null,null,592000,3246]
[null,null,null,null,null,null,null,null,null,null,593000,3250.25]
[null,null,null,null,null,null,null,null,null,null,594000,3254.5]
[null,null,null,null,null,null,null,null,null,null,595000,3258.75]
[null,null,null,null,null,null,null,null,null,null,596000,3263]
[null,null,null,null,null,null,null,null,null,null,597000,3267.25]
[null,null,null,null,null,null,null,null,null,null,598000,3271.5]
[null,null,null,null,null,null,null,null,null,null,599000,3275.75]
[null,null,null,null,null,null,null,null,null,null,600000,3280]
[null,null,null,null,null,null,null,null,null,null,601000,3284.25]
[null,null,null,null,null,null,null,null,null,null,602000,3288.5]
[null,null,null,null,null,null,null,null,null,null,603000,3292.75]
[null,null,null,null,null,null,null,null,null,null,604000,3297]
[null,null,null,null,null,null,null,null,null,null,605000,3301.25]
[null,null,null,null,null,null,null,null,null,null,606000,3305.5]
[null,null,null,null,null,null,null,null,null,null,607000,3309.75]
[null,null,null,null,null,null,null,null,null,null,608000,3314]
[null,null,null,null,null,null,null,null,null,null,609000,3318.25]
[null,null,null,null,null,null,null,null,null,null,610000,3322.5]
[null,null,null,null,null,null,null,null,null,null,611000,3326.75]
[null,null,null,null,null,null,null,null,null,null,612000,3331]
[null,null,null,null,null,null,null,null,null,null,613000,3335.25]
[null,null,null,null,null,null,null,null,null,null,614000,3339.5]
[null,null,null,null,null,null,null,null,null,null,615000,3343.75]
[null,null,null,null,null,null,null,null,null,null,616000,3348]
[null,null,null,null,null,null,null,null,null,null,617000,3352.25]
[null,null,null,null,null,null,null,null,null,null,618000,3356.5]
[null,null,null,null,null,null,null,null,null,null,619000,3360.75]
[null,null,null,null,null,null,null,null,null,null,620000,3365]
[null,null,null,null,null,null,null,null,null,null,621000,3369.25]
[null,null,null,null,null,null,null,null,null,null,622000,3373.5]
[null,null,null,null,null,null,null,null,null,null,623000,3377.75]
[null,null,null,null,null,null,null,null,null,null,624000,3382]
[null,null,null,null,null,null,null,null,null,null,625000,3386.25]
[null,null,null,null,null,null,null,null,null,null,626000,3390.5]
[null,null,null,null,null,null,null,null,null,null,627000,3394.75]
[null,null,null,null,null,null,null,null,null,null,628000,3399]
[null,null,null,null,null,null,null,null,null,null,629000,3403.25]
[null,null,null,null,null,null,null,null,null,null,630000,{"$f":"L672+4.25","v":3407.5}]
[null,null,null,null,null,null,null,null,null,null,631000,3411.75]
[null,null,null,null,null,null,null,null,null,null,632000,3416]
[null,null,null,null,null,null,null,null,null,null,633000,3420.25]
[null,null,null,null,null,null,null,null,null,null,634000,3424.5]
[null,null,null,null,null,null,null,null,null,null,635000,3428.75]
[null,null,null,null,null,null,null,null,null,null,636000,3433]
[null,null,null,null,null,null,null,null,null,null,637000,3437.25]
[null,null,null,null,null,null,null,null,null,null,638000,3441.5]
[null,null,null,null,null,null,null,null,null,null,639000,3445.75]
[null,null,null,null,null,null,null,null,null,null,640000,3450]
[null,null,null,null,null,null,null,null,null,null,641000,3454.25]
[null,null,null,null,null,null,null,null,null,null,642000,3458.5]
[null,null,null,null,null,null,null,null,null,null,643000,3462.75]
[null,null,null,null,null,null,null,null,null,null,644000,3467]
[null,null,null,null,null,null,null,null,null,null,645000,3471.25]
[null,null,null,null,null,null,null,null,null,null,646000,3475.5]
[null,null,null,null,null,null,null,null,null,null,647000,3479.75]
[null,null,null,null,null,null,null,null,null,null,648000,3484]
[null,null,null,null,null,null,null,null,null,null,{"$f":"K691+1000","v":649000},3488.25]
[null,null,null,null,null,null,null,null,null,null,650000,3492.5]
[null,null,null,null,null,null,null,null,null,null,651000,3496.75]
[null,null,null,null,null,null,null,null,null,null,652000,3501]
[null,null,null,null,null,null,null,null,null,null,653000,3505.25]
[null,null,null,null,null,null,null,null,null,null,654000,3509.5]
[null,null,null,null,null,null,null,null,null,null,655000,3513.75]
[null,null,null,null,null,null,null,null,null,null,656000,3518]
[null,null,null,null,null,null,null,null,null,null,657000,3522.25]
[null,null,null,null,null,null,null,null,null,null,658000,3526.5]
[null,null,null,null,null,null,null,null,null,null,659000,3530.75]
[null,null,null,null,null,null,null,null,null,null,660000,3535]
[null,null,null,null,null,null,null,null,null,null,661000,3539.25]
[null,null,null,null,null,null,null,null,null,null,662000,3543.5]
[null,null,null,null,null,null,null,null,null,null,663000,3547.75]
[null,null,null,null,null,null,null,null,null,null,664000,3552]
[null,null,null,null,null,null,null,null,null,null,665000,3556.25]
[null,null,null,null,null,null,null,null,null,null,666000,3560.5]
[null,null,null,null,null,null,null,null,null,null,667000,3564.75]
[null,null,null,null,null,null,null,null,null,null,668000,3569]
[null,null,null,null,null,null,null,null,null,null,669000,3573.25]
[null,null,null,null,null,null,null,null,null,null,670000,3577.5]
[null,null,null,null,null,null,null,null,null,null,671000,3581.75]
[null,null,null,null,null,null,null,null,null,null,672000,3586]
[null,null,null,null,null,null,null,null,null,null,673000,3590.25]
[null,null,null,null,null,null,null,null,null,null,674000,3594.5]
[null,null,null,null,null,null,null,null,null,null,675000,3598.75]
[null,null,null,null,null,null,null,null,null,null,676000,3603]
[null,null,null,null,null,null,null,null,null,null,677000,3607.25]
[null,null,null,null,null,null,null,null,null,null,678000,3611.5]
[null,null,null,null,null,null,null,null,null,null,679000,3615.75]
[null,null,null,null,null,null,null,null,null,null,680000,3620]
[null,null,null,null,null,null,null,null,null,null,681000,3624.25]
[null,null,null,null,null,null,null,null,null,null,682000,3628.5]
[null,null,null,null,null,null,null,null,null,null,683000,3632.75]
[null,null,null,null,null,null,null,null,null,null,684000,3637]
[null,null,null,null,null,null,null,null,null,null,685000,3641.25]
[null,null,null,null,null,null,null,null,null,null,686000,3645.5]
[null,null,null,null,null,null,null,null,null,null,687000,3649.75]
[null,null,null,null,null,null,null,null,null,null,688000,3654]
[null,null,null,null,null,null,null,null,null,null,689000,3658.25]
[null,null,null,null,null,null,null,null,null,null,690000,3662.5]
[null,null,null,null,null,null,null,null,null,null,691000,3666.75]
[null,null,null,null,null,null,null,null,null,null,692000,3671]
[null,null,null,null,null,null,null,null,null,null,693000,3675.25]
[null,null,null,null,null,null,null,null,null,null,694000,{"$f":"L736+4.25","v":3679.5}]
[null,null,null,null,null,null,null,null,null,null,695000,3683.75]
[null,null,null,null,null,null,null,null,null,null,696000,3688]
[null,null,null,null,null,null,null,null,null,null,697000,3692.25]
[null,null,null,null,null,null,null,null,null,null,698000,3696.5]
[null,null,null,null,null,null,null,null,null,null,699000,3700.75]
[null,null,null,null,null,null,null,null,null,null,700000,3705]
[null,null,null,null,null,null,null,null,null,null,701000,3709.25]
[null,null,null,null,null,null,null,null,null,null,702000,3713.5]
[null,null,null,null,null,null,null,null,null,null,703000,3717.75]
[null,null,null,null,null,null,null,null,null,null,704000,3722]
[null,null,null,null,null,null,null,null,null,null,705000,3726.25]
[null,null,null,null,null,null,null,null,null,null,706000,3730.5]
[null,null,null,null,null,null,null,null,null,null,707000,3734.75]
[null,null,null,null,null,null,null,null,null,null,708000,3739]
[null,null,null,null,null,null,null,null,null,null,709000,3743.25]
[null,null,null,null,null,null,null,null,null,null,710000,3747.5]
[null,null,null,null,null,null,null,null,null,null,711000,3751.75]
[null,null,null,null,null,null,null,null,null,null,712000,3756]
[null,null,null,null,null,null,null,null,null,null,{"$f":"K755+1000","v":713000},3760.25]
[null,null,null,null,null,null,null,null,null,null,714000,3764.5]
[null,null,null,null,null,null,null,null,null,null,715000,3768.75]
[null,null,null,null,null,null,null,null,null,null,716000,3773]
[null,null,null,null,null,null,null,null,null,null,717000,3777.25]
[null,null,null,null,null,null,null,null,null,null,718000,3781.5]
[null,null,null,null,null,null,null,null,null,null,719000,3785.75]
[null,null,null,null,null,null,null,null,null,null,720000,3790]
[null,null,null,null,null,null,null,null,null,null,721000,3794.25]
[null,null,null,null,null,null,null,null,null,null,722000,3798.5]
[null,null,null,null,null,null,null,null,null,null,723000,3802.75]
[null,null,null,null,null,null,null,null,null,null,724000,3807]
[null,null,null,null,null,null,null,null,null,null,725000,3811.25]
[null,null,null,null,null,null,null,null,null,null,726000,3815.5]
[null,null,null,null,null,null,null,null,null,null,727000,3819.75]
[null,null,null,null,null,null,null,null,null,null,728000,3824]
[null,null,null,null,null,null,null,null,null,null,729000,3828.25]
[null,null,null,null,null,null,null,null,null,null,730000,3832.5]
[null,null,null,null,null,null,null,null,null,null,731000,3836.75]
[null,null,null,null,null,null,null,null,null,null,732000,3841]
[null,null,null,null,null,null,null,null,null,null,733000,3845.25]
[null,null,null,null,null,null,null,null,null,null,734000,3849.5]
[null,null,null,null,null,null,null,null,null,null,735000,3853.75]
[null,null,null,null,null,null,null,null,null,null,736000,3858]
[null,null,null,null,null,null,null,null,null,null,737000,3862.25]
[null,null,null,null,null,null,null,null,null,null,738000,3866.5]
[null,null,null,null,null,null,null,null,null,null,739000,3870.75]
[null,null,null,null,null,null,null,null,null,null,740000,3875]
[null,null,null,null,null,null,null,null,null,null,741000,3879.25]
[null,null,null,null,null,null,null,null,null,null,742000,3883.5]
[null,null,null,null,null,null,null,null,null,null,743000,3887.75]
[null,null,null,null,null,null,null,null,null,null,744000,3892]
[null,null,null,null,null,null,null,null,null,null,745000,3896.25]
[null,null,null,null,null,null,null,null,null,null,746000,3900.5]
[null,null,null,null,null,null,null,null,null,null,747000,3904.75]
[null,null,null,null,null,null,null,null,null,null,748000,3909]
[null,null,null,null,null,null,null,null,null,null,749000,3913.25]
[null,null,null,null,null,null,null,null,null,null,750000,3917.5]
[null,null,null,null,null,null,null,null,null,null,751000,3921.75]
[null,null,null,null,null,null,null,null,null,null,752000,3926]
[null,null,null,null,null,null,null,null,null,null,753000,3930.25]
[null,null,null,null,null,null,null,null,null,null,754000,3934.5]
[null,null,null,null,null,null,null,null,null,null,755000,3938.75]
[null,null,null,null,null,null,null,null,null,null,756000,3943]
[null,null,null,null,null,null,null,null,null,null,757000,3947.25]
[null,null,null,null,null,null,null,null,null,null,758000,{"$f":"L800+4.25","v":3951.5}]
[null,null,null,null,null,null,null,null,null,null,759000,3955.75]
[null,null,null,null,null,null,null,null,null,null,760000,3960]
[null,null,null,null,null,null,null,null,null,null,761000,3964.25]
[null,null,null,null,null,null,null,null,null,null,762000,3968.5]
[null,null,null,null,null,null,null,null,null,null,763000,3972.75]
[null,null,null,null,null,null,null,null,null,null,764000,3977]
[null,null,null,null,null,null,null,null,null,null,765000,3981.25]
[null,null,null,null,null,null,null,null,null,null,766000,3985.5]
[null,null,null,null,null,null,null,null,null,null,767000,3989.75]
[null,null,null,null,null,null,null,null,null,null,768000,3994]
[null,null,null,null,null,null,null,null,null,null,769000,3998.25]
[null,null,null,null,null,null,null,null,null,null,770000,4002.5]
[null,null,null,null,null,null,null,null,null,null,771000,4006.75]
[null,null,null,null,null,null,null,null,null,null,772000,4011]
[null,null,null,null,null,null,null,null,null,null,773000,4015.25]
[null,null,null,null,null,null,null,null,null,null,774000,4019.5]
[null,null,null,null,null,null,null,null,null,null,775000,4023.75]
[null,null,null,null,null,null,null,null,null,null,776000,4028]
[null,null,null,null,null,null,null,null,null,null,{"$f":"K819+1000","v":777000},4032.25]
[null,null,null,null,null,null,null,null,null,null,778000,4036.5]
[null,null,null,null,null,null,null,null,null,null,779000,4040.75]
[null,null,null,null,null,null,null,null,null,null,780000,4045]
[null,null,null,null,null,null,null,null,null,null,781000,4049.25]
[null,null,null,null,null,null,null,null,null,null,782000,4053.5]
[null,null,null,null,null,null,null,null,null,null,783000,4057.75]
[null,null,null,null,null,null,null,null,null,null,784000,4062]
[null,null,null,null,null,null,null,null,null,null,785000,4066.25]
[null,null,null,null,null,null,null,null,null,null,786000,4070.5]
[null,null,null,null,null,null,null,null,null,null,787000,4074.75]
[null,null,null,null,null,null,null,null,null,null,788000,4079]
[null,null,null,null,null,null,null,null,null,null,789000,4083.25]
[null,null,null,null,null,null,null,null,null,null,790000,4087.5]
[null,null,null,null,null,null,null,null,null,null,791000,4091.75]
[null,null,null,null,null,null,null,null,null,null,792000,4096]
[null,null,null,null,null,null,null,null,null,null,793000,4100.25]
[null,null,null,null,null,null,null,null,null,null,794000,4104.5]
[null,null,null,null,null,null,null,null,null,null,795000,4108.75]
[null,null,null,null,null,null,null,null,null,null,796000,4113]
[null,null,null,null,null,null,null,null,null,null,797000,4117.25]
[null,null,null,null,null,null,null,null,null,null,798000,4121.5]
[null,null,null,null,null,null,null,null,null,null,799000,4125.75]
[null,null,null,null,null,null,null,null,null,null,800000,4130]
[null,null,null,null,null,null,null,null,null,null,801000,4134.25]
[null,null,null,null,null,null,null,null,null,null,802000,4138.5]
[null,null,null,null,null,null,null,null,null,null,803000,4142.75]
[null,null,null,null,null,null,null,null,null,null,804000,4147]
[null,null,null,null,null,null,null,null,null,null,805000,4151.25]
[null,null,null,null,null,null,null,null,null,null,806000,4155.5]
[null,null,null,null,null,null,null,null,null,null,807000,4159.75]
[null,null,null,null,null,null,null,null,null,null,808000,4164]
[null,null,null,null,null,null,null,null,null,null,809000,4168.25]
[null,null,null,null,null,null,null,null,null,null,810000,4172.5]
[null,null,null,null,null,null,null,null,null,null,811000,4176.75]
[null,null,null,null,null,null,null,null,null,null,812000,4181]
[null,null,null,null,null,null,null,null,null,null,813000,4185.25]
[null,null,null,null,null,null,null,null,null,null,814000,4189.5]
[null,null,null,null,null,null,null,null,null,null,815000,4193.75]
[null,null,null,null,null,null,null,null,null,null,816000,4198]
[null,null,null,null,null,null,null,null,null,null,817000,4202.25]
[null,null,null,null,null,null,null,null,null,null,818000,4206.5]
[null,null,null,null,null,null,null,null,null,null,819000,4210.75]
[null,null,null,null,null,null,null,null,null,null,820000,4215]
[null,null,null,null,null,null,null,null,null,null,821000,4219.25]
[null,null,null,null,null,null,null,null,null,null,822000,{"$f":"L864+4.25","v":4223.5}]
[null,null,null,null,null,null,null,null,null,null,823000,4227.75]
[null,null,null,null,null,null,null,null,null,null,824000,4232]
[null,null,null,null,null,null,null,null,null,null,825000,4236.25]
[null,null,null,null,null,null,null,null,null,null,826000,4240.5]
[null,null,null,null,null,null,null,null,null,null,827000,4244.75]
[null,null,null,null,null,null,null,null,null,null,828000,4249]
[null,null,null,null,null,null,null,null,null,null,829000,4253.25]
[null,null,null,null,null,null,null,null,null,null,830000,4257.5]
[null,null,null,null,null,null,null,null,null,null,831000,4261.75]
[null,null,null,null,null,null,null,null,null,null,832000,4266]
[null,null,null,null,null,null,null,null,null,null,833000,4270.25]
[null,null,null,null,null,null,null,null,null,null,834000,4274.5]
[null,null,null,null,null,null,null,null,null,null,835000,4278.75]
[null,null,null,null,null,null,null,null,null,null,836000,4283]
[null,null,null,null,null,null,null,null,null,null,837000,4287.25]
[null,null,null,null,null,null,null,null,null,null,838000,4291.5]
[null,null,null,null,null,null,null,null,null,null,839000,4295.75]
[null,null,null,null,null,null,null,null,null,null,840000,4300]
[null,null,null,null,null,null,null,null,null,null,{"$f":"K883+1000","v":841000},4304.25]
[null,null,null,null,null,null,null,null,null,null,842000,4308.5]
[null,null,null,null,null,null,null,null,null,null,843000,4312.75]
[null,null,null,null,null,null,null,null,null,null,844000,4317]
[null,null,null,null,null,null,null,null,null,null,845000,4321.25]
[null,null,null,null,null,null,null,null,null,null,846000,4325.5]
[null,null,null,null,null,null,null,null,null,null,847000,4329.75]
[null,null,null,null,null,null,null,null,null,null,848000,4334]
[null,null,null,null,null,null,null,null,null,null,849000,4338.25]
[null,null,null,null,null,null,null,null,null,null,850000,4342.5]
[null,null,null,null,null,null,null,null,null,null,851000,4346.75]
[null,null,null,null,null,null,null,null,null,null,852000,4351]
[null,null,null,null,null,null,null,null,null,null,853000,4355.25]
[null,null,null,null,null,null,null,null,null,null,854000,4359.5]
[null,null,null,null,null,null,null,null,null,null,855000,4363.75]
[null,null,null,null,null,null,null,null,null,null,856000,4368]
[null,null,null,null,null,null,null,null,null,null,857000,4372.25]
[null,null,null,null,null,null,null,null,null,null,858000,4376.5]
[null,null,null,null,null,null,null,null,null,null,859000,4380.75]
[null,null,null,null,null,null,null,null,null,null,860000,4385]
[null,null,null,null,null,null,null,null,null,null,861000,4389.25]
[null,null,null,null,null,null,null,null,null,null,862000,4393.5]
[null,null,null,null,null,null,null,null,null,null,863000,4397.75]
[null,null,null,null,null,null,null,null,null,null,864000,4402]
[null,null,null,null,null,null,null,null,null,null,865000,4406.25]
[null,null,null,null,null,null,null,null,null,null,866000,4410.5]
[null,null,null,null,null,null,null,null,null,null,867000,4414.75]
[null,null,null,null,null,null,null,null,null,null,868000,4419]
[null,null,null,null,null,null,null,null,null,null,869000,4423.25]
[null,null,null,null,null,null,null,null,null,null,870000,4427.5]
[null,null,null,null,null,null,null,null,null,null,871000,4431.75]
[null,null,null,null,null,null,null,null,null,null,872000,4436]
[null,null,null,null,null,null,null,null,null,null,873000,4440.25]
[null,null,null,null,null,null,null,null,null,null,874000,4444.5]
[null,null,null,null,null,null,null,null,null,null,875000,4448.75]
[null,null,null,null,null,null,null,null,null,null,876000,4453]
[null,null,null,null,null,null,null,null,null,null,877000,4457.25]
[null,null,null,null,null,null,null,null,null,null,878000,4461.5]
[null,null,null,null,null,null,null,null,null,null,879000,4465.75]
[null,null,null,null,null,null,null,null,null,null,880000,4470]
[null,null,null,null,null,null,null,null,null,null,881000,4474.25]
[null,null,null,null,null,null,null,null,null,null,882000,4478.5]
[null,null,null,null,null,null,null,null,null,null,883000,4482.75]
[null,null,null,null,null,null,null,null,null,null,884000,4487]
[null,null,null,null,null,null,null,null,null,null,885000,4491.25]
[null,null,null,null,null,null,null,null,null,null,886000,{"$f":"L928+4.25","v":4495.5}]
[null,null,null,null,null,null,null,null,null,null,887000,4499.75]
[null,null,null,null,null,null,null,null,null,null,888000,4504]
[null,null,null,null,null,null,null,null,null,null,889000,4508.25]
[null,null,null,null,null,null,null,null,null,null,890000,4512.5]
[null,null,null,null,null,null,null,null,null,null,891000,4516.75]
[null,null,null,null,null,null,null,null,null,null,892000,4521]
[null,null,null,null,null,null,null,null,null,null,893000,4525.25]
[null,null,null,null,null,null,null,null,null,null,894000,4529.5]
[null,null,null,null,null,null,null,null,null,null,895000,4533.75]
[null,null,null,null,null,null,null,null,null,null,896000,4538]
[null,null,null,null,null,null,null,null,null,null,897000,4542.25]
[null,null,null,null,null,null,null,null,null,null,898000,4546.5]
[null,null,null,null,null,null,null,null,null,null,899000,4550.75]
[null,null,null,null,null,null,null,null,null,null,900000,4555]
[null,null,null,null,null,null,null,null,null,null,901000,4559.25]
[null,null,null,null,null,null,null,null,null,null,902000,4563.5]
[null,null,null,null,null,null,null,null,null,null,903000,4567.75]
[null,null,null,null,null,null,null,null,null,null,904000,4572]
[null,null,null,null,null,null,null,null,null,null,{"$f":"K947+1000","v":905000},4576.25]
[null,null,null,null,null,null,null,null,null,null,906000,4580.5]
[null,null,null,null,null,null,null,null,null,null,907000,4584.75]
[null,null,null,null,null,null,null,null,null,null,908000,4589]
[null,null,null,null,null,null,null,null,null,null,909000,4593.25]
[null,null,null,null,null,null,null,null,null,null,910000,4597.5]
[null,null,null,null,null,null,null,null,null,null,911000,4601.75]
[null,null,null,null,null,null,null,null,null,null,912000,4606]
[null,null,null,null,null,null,null,null,null,null,913000,4610.25]
[null,null,null,null,null,null,null,null,null,null,914000,4614.5]
[null,null,null,null,null,null,null,null,null,null,915000,4618.75]
[null,null,null,null,null,null,null,null,null,null,916000,4623]
[null,null,null,null,null,null,null,null,null,null,917000,4627.25]
[null,null,null,null,null,null,null,null,null,null,918000,4631.5]
[null,null,null,null,null,null,null,null,null,null,919000,4635.75]
[null,null,null,null,null,null,null,null,null,null,920000,4640]
[null,null,null,null,null,null,null,null,null,null,921000,4644.25]
[null,null,null,null,null,null,null,null,null,null,922000,4648.5]
[null,null,null,null,null,null,null,null,null,null,923000,4652.75]
[null,null,null,null,null,null,null,null,null,null,924000,4657]
[null,null,null,null,null,null,null,null,null,null,925000,4661.25]
[null,null,null,null,null,null,null,null,null,null,926000,4665.5]
[null,null,null,null,null,null,null,null,null,null,927000,4669.75]
[null,null,null,null,null,null,null,null,null,null,928000,4674]
[null,null,null,null,null,null,null,null,null,null,929000,4678.25]
[null,null,null,null,null,null,null,null,null,null,930000,4682.5]
[null,null,null,null,null,null,null,null,null,null,931000,4686.75]
[null,null,null,null,null,null,null,null,null,null,932000,4691]
[null,null,null,null,null,null,null,null,null,null,933000,4695.25]
[null,null,null,null,null,null,null,null,null,null,934000,4699.5]
[null,null,null,null,null,null,null,null,null,null,935000,4703.75]
[null,null,null,null,null,null,null,null,null,null,936000,4708]
[null,null,null,null,null,null,null,null,null,null,937000,4712.25]
[null,null,null,null,null,null,null,null,null,null,938000,4716.5]
[null,null,null,null,null,null,null,null,null,null,939000,4720.75]
[null,null,null,null,null,null,null,null,null,null,940000,4725]
[null,null,null,null,null,null,null,null,null,null,941000,4729.25]
[null,null,null,null,null,null,null,null,null,null,942000,4733.5]
[null,null,null,null,null,null,null,null,null,null,943000,4737.75]
[null,null,null,null,null,null,null,null,null,null,944000,4742]
[null,null,null,null,null,null,null,null,null,null,945000,4746.25]
[null,null,null,null,null,null,null,null,null,null,946000,4750.5]
[null,null,null,null,null,null,null,null,null,null,947000,4754.75]
[null,null,null,null,null,null,null,null,null,null,948000,4759]
[null,null,null,null,null,null,null,null,null,null,949000,4763.25]
[null,null,null,null,null,null,null,null,null,null,950000,{"$f":"L992+4.25","v":4767.5}]
[null,null,null,null,null,null,null,null,null,null,951000,4771.75]
[null,null,null,null,null,null,null,null,null,null,952000,4776]
[null,null,null,null,null,null,null,null,null,null,953000,4780.25]
[null,null,null,null,null,null,null,null,null,null,954000,4784.5]
[null,null,null,null,null,null,null,null,null,null,955000,4788.75]
[null,null,null,null,null,null,null,null,null,null,956000,4793]
[null,null,null,null,null,null,null,null,null,null,957000,4797.25]
[null,null,null,null,null,null,null,null,null,null,958000,4801.5]
[null,null,null,null,null,null,null,null,null,null,959000,4805.75]
[null,null,null,null,null,null,null,null,null,null,960000,4810]
[null,null,null,null,null,null,null,null,null,null,961000,4814.25]
[null,null,null,null,null,null,null,null,null,null,962000,4818.5]
[null,null,null,null,null,null,null,null,null,null,963000,4822.75]
[null,null,null,null,null,null,null,null,null,null,964000,4827]
[null,null,null,null,null,null,null,null,null,null,965000,4831.25]
[null,null,null,null,null,null,null,null,null,null,966000,4835.5]
[null,null,null,null,null,null,null,null,null,null,967000,4839.75]
[null,null,null,null,null,null,null,null,null,null,968000,4844]
[null,null,null,null,null,null,null,null,null,null,{"$f":"K1011+1000","v":969000},4848.25]
[null,null,null,null,null,null,null,null,null,null,970000,4852.5]
[null,null,null,null,null,null,null,null,null,null,971000,4856.75]
[null,null,null,null,null,null,null,null,null,null,972000,4861]
[null,null,null,null,null,null,null,null,null,null,973000,4865.25]
[null,null,null,null,null,null,null,null,null,null,974000,4869.5]
[null,null,null,null,null,null,null,null,null,null,975000,4873.75]
[null,null,null,null,null,null,null,null,null,null,976000,4878]
[null,null,null,null,null,null,null,null,null,null,977000,4882.25]
[null,null,null,null,null,null,null,null,null,null,978000,4886.5]
[null,null,null,null,null,null,null,null,null,null,979000,4890.75]
[null,null,null,null,null,null,null,null,null,null,980000,4895]
[null,null,null,null,null,null,null,null,null,null,981000,4899.25]
[null,null,null,null,null,null,null,null,null,null,982000,4903.5]
[null,null,null,null,null,null,null,null,null,null,983000,4907.75]
[null,null,null,null,null,null,null,null,null,null,984000,4912]
[null,null,null,null,null,null,null,null,null,null,985000,4916.25]
[null,null,null,null,null,null,null,null,null,null,986000,4920.5]
[null,null,null,null,null,null,null,null,null,null,987000,4924.75]
[null,null,null,null,null,null,null,null,null,null,988000,4929]
[null,null,null,null,null,null,null,null,null,null,989000,4933.25]
[null,null,null,null,null,null,null,null,null,null,990000,4937.5]
[null,null,null,null,null,null,null,null,null,null,991000,4941.75]
[null,null,null,null,null,null,null,null,null,null,992000,4946]
[null,null,null,null,null,null,null,null,null,null,993000,4950.25]
[null,null,null,null,null,null,null,null,null,null,994000,4954.5]
[null,null,null,null,null,null,null,null,null,null,995000,4958.75]
[null,null,null,null,null,null,null,null,null,null,996000,4963]
[null,null,null,null,null,null,null,null,null,null,997000,4967.25]
[null,null,null,null,null,null,null,null,null,null,998000,4971.5]
[null,null,null,null,null,null,null,null,null,null,999000,4975.75]
[null,null,null,null,null,null,null,null,null,null,1000000,4980]